bitfinex/quotes_BTCUSD_20251102
["timestamp","ask_amount","ask_price","bid_price","bid_amount"]
[1762082632190,0.00021862,110920.0,110910.0,3.42791094]
[1762082637345,0.00021862,110920.0,110910.0,3.41571228]
[1762082641320,0.00021862,110920.0,110910.0,3.56491228]
[1762082641861,0.00014515,110930.0,110920.0,0.03618228]
[1762082642065,0.00014515,110930.0,110920.0,3.61174451]
[1762082642213,0.00036374,110930.0,110920.0,3.5937135]
[1762082642724,0.00036374,110930.0,110920.0,3.7429135]
[1762082643074,0.00036374,110930.0,110920.0,3.7489135]
[1762082643440,0.00036374,110930.0,110920.0,3.69770368]
[1762082643666,0.00036374,110930.0,110920.0,3.70770367]
[1762082643890,0.009974,110950.0,110940.0,3.53618228]
[1762082644218,0.01045772,110950.0,110940.0,3.30646178]
[1762082644340,0.01045772,110950.0,110940.0,3.33033178]
[1762082645167,0.01045772,110950.0,110940.0,3.33533178]
[1762082646192,0.01045772,110950.0,110940.0,3.34433178]
[1762082646381,0.01045772,110950.0,110940.0,3.25053228]
[1762082648749,0.01045772,110950.0,110940.0,3.31879897]
[1762082649284,0.01045772,110950.0,110940.0,3.16959897]
[1762082649480,0.01089479,110950.0,110940.0,3.16959897]
[1762082660982,0.01089479,110950.0,110940.0,3.31879897]
[1762082665268,0.01089479,110950.0,110940.0,3.31868283]
[1762082668690,0.0002,110970.0,110960.0,0.34]
[1762082668857,0.00028718,110970.0,110960.0,3.45407168]
[1762082669055,0.01546718,110970.0,110960.0,3.45407168]
[1762082669256,0.00028718,110970.0,110960.0,3.47738168]
[1762082669844,0.00028718,110970.0,110960.0,3.48038168]
[1762082670452,0.00028718,110970.0,110960.0,3.47738168]
[1762082670799,0.00028718,110970.0,110960.0,3.48538168]
[1762082671206,0.00028718,110970.0,110960.0,3.48038168]
[1762082671860,0.00028718,110970.0,110960.0,3.48923475]
[1762082672058,0.00028718,110970.0,110960.0,3.48623475]
[1762082672258,0.00028718,110970.0,110960.0,3.49123475]
[1762082672640,0.00028718,110970.0,110960.0,3.50023475]
[1762082674264,0.00028718,110970.0,110960.0,3.64943475]
[1762082674613,0.00072413,110970.0,110960.0,3.64943475]
[1762082677950,0.00072413,110970.0,110960.0,3.50023475]
[1762082681484,0.00072413,110970.0,110960.0,3.53641703]
[1762082683222,0.00072413,110970.0,110960.0,3.68561703]
[1762082696230,0.01590413,110970.0,110960.0,3.51310703]
[1762082696515,0.03228413,110970.0,110960.0,3.48478703]
[1762082696708,0.01590413,110970.0,110960.0,3.51310703]
[1762082696893,0.00072413,110970.0,110960.0,3.53641703]
[1762082697321,0.00072413,110970.0,110960.0,3.52741703]
[1762082697914,0.00072413,110970.0,110960.0,3.52541703]
[1762082698269,0.00072413,110970.0,110960.0,3.53041703]
[1762082700105,0.01645413,110970.0,110960.0,3.50710703]
[1762082700481,0.00072413,110970.0,110960.0,3.53136703]
[1762082702664,0.00072413,110970.0,110960.0,3.59574681]
[1762082706768,0.00072413,110970.0,110960.0,3.53136703]
[1762082708195,0.03283413,110970.0,110960.0,3.47878703]
[1762082709011,0.01645413,110970.0,110960.0,3.47878703]
[1762082711748,0.04353298,110970.0,110960.0,3.47878703]
[1762082714105,0.04353298,110970.0,110960.0,3.53112703]
[1762082714262,0.04353298,110970.0,110960.0,3.50686703]
[1762082718371,0.04353298,110970.0,110960.0,3.65606703]
[1762082718839,0.04353298,110970.0,110960.0,3.64721396]
[1762082719083,0.05991298,110970.0,110960.0,3.61913396]
[1762082719984,0.05991298,110970.0,110960.0,3.61413396]
[1762082720161,0.05991298,110970.0,110960.0,3.61113396]
[1762082720565,0.05991298,110970.0,110960.0,3.61213396]
[1762082720768,0.05991298,110970.0,110960.0,3.42575168]
[1762082721206,0.05991298,110970.0,110960.0,3.43075168]
[1762082722275,0.05991298,110970.0,110960.0,3.42775168]
[1762082722658,0.05991298,110970.0,110960.0,3.08775168]
[1762082722879,0.05991298,110970.0,110960.0,3.08875168]
[1762082724060,0.05991298,110970.0,110960.0,3.08775168]
[1762082724270,0.05991298,110970.0,110960.0,3.08575168]
[1762082725100,0.05991298,110970.0,110960.0,3.09075168]
[1762082725279,0.05991298,110970.0,110960.0,3.09375168]
[1762082729491,0.05991298,110970.0,110960.0,3.09075168]
[1762082729900,0.05991298,110970.0,110960.0,3.09175168]
[1762082730250,0.05991298,110970.0,110960.0,3.08575168]
[1762082730621,0.05991298,110970.0,110960.0,3.08775168]
[1762082731056,0.05991298,110970.0,110960.0,3.08575168]
[1762082731375,0.05991298,110970.0,110960.0,3.09075168]
[1762082731581,0.05991298,110970.0,110960.0,3.09375168]
[1762082741933,0.05991298,110970.0,110960.0,3.09075168]
[1762082742138,0.05991298,110970.0,110960.0,3.08675168]
[1762082742550,0.05991298,110970.0,110960.0,3.08875168]
[1762082743516,0.05991298,110970.0,110960.0,3.08675168]
[1762082743936,0.05991298,110970.0,110960.0,3.09175168]
[1762082744138,0.05991298,110970.0,110960.0,3.09075168]
[1762082744664,0.05991298,110970.0,110960.0,3.09375168]
[1762082747610,0.04353298,110970.0,110960.0,3.09375168]
[1762082747782,0.05991298,110970.0,110960.0,3.09375168]
[1762082750215,0.05991298,110970.0,110960.0,3.008]
[1762082751355,0.05991298,110970.0,110960.0,3.005]
[1762082752721,0.05991298,110970.0,110960.0,3.0]
[1762082753075,0.05991298,110970.0,110960.0,3.002]
[1762082753731,0.05991298,110970.0,110960.0,3.003]
[1762082756504,0.05991298,110970.0,110960.0,3.001]
[1762082756707,0.05991298,110970.0,110960.0,3.006]
[1762082757361,0.05991298,110970.0,110960.0,3.005]
[1762082757781,0.05991298,110970.0,110960.0,3.008]
[1762082758697,0.04353298,110970.0,110960.0,3.008]
[1762082758911,0.05991298,110970.0,110960.0,3.008]
[1762082762050,0.04353298,110970.0,110960.0,3.03635]
[1762082762259,0.04353298,110970.0,110960.0,3.02005]
[1762082762459,0.04353298,110970.0,110960.0,3.008]
[1762082762723,0.05991298,110970.0,110960.0,3.008]
[1762082766499,0.04353298,110970.0,110960.0,3.0243]
[1762082766703,0.05991298,110970.0,110960.0,3.008]
[1762082767514,0.05991298,110970.0,110960.0,3.005]
[1762082768769,0.05991298,110970.0,110950.0,3.0]
[1762082768996,0.022,110960.0,110950.0,3.34]
[1762082769206,0.0380485,110960.0,110950.0,3.34]
[1762082769386,0.06513297,110960.0,110950.0,3.34]
[1762082770252,0.06513297,110960.0,110950.0,3.341]
[1762082770457,0.06513297,110960.0,110950.0,3.34]
[1762082770672,0.06513297,110960.0,110950.0,3.348]
[1762082778682,0.06513297,110960.0,110950.0,3.41237978]
[1762082778822,0.06513297,110960.0,110950.0,3.348]
[1762082780506,0.04875297,110960.0,110950.0,3.46335978]
[1762082780694,0.04875297,110960.0,110950.0,3.44072978]
[1762082781103,0.04875297,110960.0,110950.0,3.43572978]
[1762082781521,0.04875297,110960.0,110950.0,3.44472978]
[1762082782136,0.02730297,110960.0,110950.0,3.50054206]
[1762082782340,0.0002185,110960.0,110950.0,3.50554206]
[1762082784604,0.0002185,110960.0,110950.0,3.48229206]
[1762082784810,0.0002185,110960.0,110950.0,3.50629206]
[1762082788410,0.0002185,110960.0,110950.0,3.65549206]
[1762082788622,0.0002185,110960.0,110950.0,3.69881779]
[1762082789389,0.0002185,110960.0,110950.0,3.61818825]
[1762082790009,0.0002185,110960.0,110950.0,3.69881779]
[1762082790629,0.0002185,110960.0,110950.0,3.54961779]
[1762082794306,0.0002185,110960.0,110950.0,3.46898825]
[1762082795803,0.0002185,110960.0,110950.0,3.54961779]
[1762082796455,0.0002185,110960.0,110950.0,3.46898825]
[1762082797227,0.0002185,110960.0,110950.0,3.53615358]
[1762082801054,0.0002185,110960.0,110950.0,3.60052352]
[1762082803661,0.0002185,110960.0,110950.0,3.49717591]
[1762082804083,0.0002185,110960.0,110950.0,3.50628222]
[1762082805813,0.0002185,110960.0,110950.0,3.50629622]
[1762082806878,0.0002185,110960.0,110950.0,3.44191228]
[1762082810390,0.0002185,110960.0,110950.0,3.52254182]
[1762082811546,0.0002185,110960.0,110950.0,3.54961957]
[1762082812888,0.0002185,110960.0,110950.0,3.52254182]
[1762082822163,0.0002185,110960.0,110950.0,3.49854182]
[1762082822361,0.0002185,110960.0,110950.0,3.52181182]
[1762082824630,0.0222185,110960.0,110950.0,3.49854182]
[1762082824838,0.0385985,110960.0,110950.0,3.47081182]
[1762082825048,0.0385985,110960.0,110950.0,3.43462954]
[1762082825493,0.0385985,110960.0,110950.0,3.41849865]
[1762082825706,0.0385985,110960.0,110950.0,3.11468093]
[1762082826123,0.06568011,110960.0,110950.0,3.11468093]
[1762082826327,0.06568011,110960.0,110950.0,3.44068093]
[1762082826529,0.06568011,110960.0,110950.0,3.44568093]
[1762082826735,0.06568011,110960.0,110950.0,3.44868093]
[1762082827142,0.06568011,110960.0,110950.0,3.44368093]
[1762082827318,0.06568011,110960.0,110950.0,3.44968093]
[1762082827646,0.06568011,110960.0,110950.0,3.45468093]
[1762082832921,0.04930011,110960.0,110950.0,3.45468093]
[1762082833554,0.04930011,110960.0,110950.0,3.48181093]
[1762082834730,0.02730011,110960.0,110950.0,3.50508093]
[1762082837431,0.02730011,110960.0,110950.0,3.44058228]
[1762082841945,0.02730011,110960.0,110950.0,3.52121182]
[1762082842109,0.02730011,110960.0,110950.0,3.44058228]
[1762082843201,0.02730011,110960.0,110950.0,3.52121182]
[1762082843405,0.02730011,110960.0,110950.0,3.44058228]
[1762082843613,0.02730011,110960.0,110950.0,3.52121182]
[1762082843818,0.0002185,110960.0,110950.0,3.52121182]
[1762082848779,0.0002185,110960.0,110950.0,3.58870166]
[1762082850391,0.0002185,110960.0,110950.0,3.73790166]
[1762082851522,0.0002185,110960.0,110950.0,3.67041182]
[1762082853556,0.0002185,110960.0,110950.0,3.73862503]
[1762082861256,0.0002185,110960.0,110950.0,3.58942503]
[1762082874261,0.02116397,110980.0,110950.0,3.58942503]
[1762082874387,0.03393169,111000.0,110990.0,3.37618228]
[1762082874594,0.03393169,111000.0,110990.0,3.46823011]
[1762082874791,0.03393169,111000.0,110990.0,3.49178011]
[1762082875002,0.03393169,111000.0,110990.0,3.42730228]
[1762082875255,0.03393169,111000.0,110990.0,3.49165895]
[1762082876398,0.03393169,111000.0,110990.0,3.50065895]
[1762082877020,0.03393169,111000.0,110990.0,3.50365895]
[1762082879638,0.03393169,111000.0,110990.0,3.65285895]
[1762082880089,0.0348053,111000.0,110990.0,3.65285895]
[1762082885546,0.0348053,111000.0,110990.0,3.50365895]
[1762082887236,0.0348053,111000.0,110990.0,3.43930228]
[1762082888513,0.0501353,111000.0,110990.0,3.43930228]
[1762082888725,0.0348053,111000.0,110990.0,3.43930228]
[1762082890012,0.0501353,111000.0,110990.0,3.38818228]
[1762082890223,0.0665153,111000.0,110990.0,3.352]
[1762082890405,0.0665153,111000.0,110990.0,3.38818228]
[1762082890873,0.0665153,111000.0,110990.0,3.37618228]
[1762082891309,0.0665153,111000.0,110990.0,3.37718228]
[1762082892614,0.0501353,111000.0,110990.0,3.37718228]
[1762082892816,0.0665153,111000.0,110990.0,3.37718228]
[1762082893227,0.0665153,111000.0,110990.0,3.39271228]
[1762082893228,0.0501353,111000.0,110990.0,3.39271228]
[1762082893412,0.0501353,111000.0,110990.0,3.45174572]
[1762082893649,0.0501353,111000.0,110990.0,3.40502228]
[1762082896156,0.0501353,111000.0,110990.0,3.37718228]
[1762082896366,0.0501353,111000.0,110990.0,3.42854228]
[1762082896577,0.0348053,111000.0,110990.0,3.42854228]
[1762082899177,0.0348053,111000.0,110990.0,3.49289895]
[1762082904157,0.0348053,111000.0,110990.0,3.42854228]
[1762082914693,0.0348053,111000.0,110990.0,3.57774228]
[1762082915344,0.0348053,111000.0,110990.0,3.42854228]
[1762082919004,0.0511853,111000.0,110990.0,3.37718228]
[1762082919206,0.0675653,111000.0,110990.0,3.37718228]
[1762082920519,0.0511853,111000.0,110990.0,3.37718228]
[1762082920889,0.0511853,111000.0,110990.0,3.39221228]
[1762082921909,0.0511853,111000.0,110990.0,3.40380228]
[1762082923359,0.0511853,111000.0,110990.0,3.4682441]
[1762082923559,0.0511853,111000.0,110990.0,3.52727754]
[1762082923766,0.0511853,111000.0,110990.0,3.4682441]
[1762082924520,0.0348053,111000.0,110990.0,3.4913441]
[1762082925010,0.0511853,111000.0,110990.0,3.4913441]
[1762082925857,0.0511853,111000.0,110990.0,3.4682441]
[1762082927532,0.0348053,111000.0,110990.0,3.4913441]
[1762082928671,0.0511853,111000.0,110990.0,3.4682441]
[1762082930241,0.0348053,111000.0,110990.0,3.4913441]
[1762082932077,0.0511853,111000.0,110990.0,3.4913441]
[1762082934516,0.0511853,111000.0,110990.0,3.4682441]
[1762082935217,0.0348053,111000.0,110990.0,3.4913441]
[1762082938775,0.0509453,111000.0,110990.0,3.4913441]
[1762082938988,0.0348053,111000.0,110990.0,3.4913441]
[1762082944295,0.0509453,111000.0,110990.0,3.4532141]
[1762082944507,0.0673253,111000.0,110990.0,3.06544182]
[1762082944673,0.0673253,111000.0,110990.0,3.001]
[1762082944869,0.09439894,111000.0,110990.0,3.001]
[1762082945070,0.1085702,111000.0,110990.0,0.001]
[1762082945869,0.1085702,111000.0,110990.0,3.0]
[1762082946179,0.1105702,111000.0,110990.0,3.0]
[1762082946380,0.09739894,111000.0,110990.0,3.0]
[1762082952388,0.09739894,111000.0,110980.0,0.42575168]
[1762082952588,0.04328,110990.0,110980.0,0.42575168]
[1762082952825,0.04393526,110990.0,110980.0,0.42575168]
[1762082953075,0.0710122,110990.0,110980.0,0.42575168]
[1762082953301,0.0710122,110990.0,110980.0,0.46832685]
[1762082953542,0.0710122,110990.0,110980.0,0.38257517]
[1762082953759,0.0710122,110990.0,110980.0,0.04257517]
[1762082953981,0.0710122,110990.0,110970.0,0.34]
[1762082954204,0.03783694,110990.0,110980.0,3.0]
[1762082954826,0.07035694,110990.0,110980.0,3.001]
[1762082955030,0.07035694,110990.0,110980.0,0.001]
[1762082961941,0.0845282,110990.0,110980.0,0.001]
[1762082962558,0.08618346,110990.0,110980.0,3.0]
[1762082962763,0.0720122,110990.0,110980.0,3.0]
[1762082962897,0.0740122,110990.0,110980.0,3.0]
[1762082974128,0.0576322,110990.0,110980.0,3.0]
[1762082974328,0.0740122,110990.0,110980.0,3.0]
[1762082979084,0.0576322,110990.0,110980.0,0.01659]
[1762082979294,0.0576322,110990.0,110980.0,0.14158468]
[1762082980647,0.0576322,110990.0,110980.0,0.12499468]
[1762082980847,0.0576322,110990.0,110980.0,3.17099594]
[1762082981088,0.0576322,110990.0,110980.0,3.15297468]
[1762082983457,0.0576322,110990.0,110980.0,3.21360696]
[1762082984035,0.0576322,110990.0,110980.0,3.18915696]
[1762082984234,0.0556322,110990.0,110980.0,3.18915696]
[1762082984439,0.0546322,110990.0,110980.0,3.18915696]
[1762082984936,0.02755526,110990.0,110980.0,3.18915696]
[1762082985164,0.02755526,110990.0,110980.0,3.19015696]
[1762082988144,0.01141526,110990.0,110980.0,3.21460696]
[1762082988354,0.00065526,110990.0,110980.0,3.21460696]
[1762082988974,0.01589526,110990.0,110980.0,3.21460696]
[1762082989193,0.02665526,110990.0,110980.0,3.19015696]
[1762082992014,0.02665526,110990.0,110980.0,3.10440528]
[1762082992236,0.04303526,110990.0,110980.0,3.07642528]
[1762082993786,0.07010964,110990.0,110980.0,3.07642528]
[1762082996525,0.05372964,110990.0,110980.0,3.09301528]
[1762082996711,0.05372964,110990.0,110980.0,3.12885528]
[1762082996921,0.05372964,110990.0,110980.0,3.10440528]
[1762082997833,0.05372964,110990.0,110980.0,3.08781528]
[1762082999321,0.05372964,110990.0,110980.0,3.07642528]
[1762082999526,0.07010964,110990.0,110980.0,3.07642528]
[1762083001745,0.05372964,110990.0,110980.0,3.07642528]
[1762083002575,0.07010964,110990.0,110980.0,3.07642528]
[1762083003105,0.07010964,110990.0,110980.0,0.001]
[1762083004244,0.07010964,110990.0,110980.0,3.0]
[1762083004487,0.07210964,110990.0,110980.0,3.0]
[1762083004742,0.002,110990.0,110980.0,3.08697228]
[1762083004976,0.01093169,111000.0,110990.0,3.90384228]
[1762083005181,0.01093169,111000.0,110990.0,3.56243377]
[1762083005583,0.01093169,111000.0,110990.0,3.61817332]
[1762083005586,0.01093169,111000.0,110990.0,3.65050265]
[1762083005794,0.01093169,111000.0,110990.0,3.5798731]
[1762083006002,0.01093169,111000.0,110990.0,3.52109828]
[1762083006205,0.00275296,111000.0,110990.0,3.54426293]
[1762083006430,0.00275296,111000.0,110990.0,3.53426294]
[1762083006641,0.00275296,111000.0,110990.0,3.58452727]
[1762083006849,0.00275296,111000.0,110990.0,3.58852727]
[1762083007050,0.00275296,111000.0,110990.0,3.54526294]
[1762083008516,0.00275296,111000.0,110990.0,3.4650364]
[1762083009319,0.00275296,111000.0,110990.0,3.50207625]
[1762083011254,0.00297134,111000.0,110990.0,3.50207625]
[1762083014176,0.00297134,111000.0,110990.0,3.46589397]
[1762083014510,0.00297134,111000.0,110990.0,3.50207625]
[1762083015165,0.00297134,111000.0,110990.0,3.51235625]
[1762083017796,0.00297134,111000.0,110990.0,3.47617397]
[1762083018027,0.00297134,111000.0,110990.0,3.51235625]
[1762083021738,0.01028,111030.0,111020.0,0.37618228]
[1762083021951,0.01042507,111030.0,111020.0,3.47552084]
[1762083022159,0.02049507,111030.0,111020.0,3.47552084]
[1762083023074,0.02315,111030.0,111020.0,3.47552084]
[1762083023344,0.02315,111030.0,111020.0,3.46642084]
[1762083023865,0.02315,111030.0,111020.0,3.43437615]
[1762083024343,0.01307,111030.0,111020.0,3.43437615]
[1762083025038,0.02314,111030.0,111020.0,3.43437615]
[1762083028209,0.02314,111030.0,111020.0,3.38630911]
[1762083029585,0.01307,111030.0,111020.0,3.40257911]
[1762083029820,0.02314,111030.0,111020.0,3.38630911]
[1762083030776,0.02314,111030.0,111020.0,3.45039849]
[1762083032249,0.01307,111030.0,111020.0,3.45039849]
[1762083033097,0.02314,111030.0,111020.0,3.45039849]
[1762083034333,0.01028,111040.0,111020.0,3.38630911]
[1762083034516,0.01028,111040.0,111030.0,3.06435348]
[1762083034726,0.01028,111040.0,111030.0,0.01922683]
[1762083035508,0.01328,111040.0,111030.0,0.01922683]
[1762083036507,0.01728,111040.0,111030.0,0.01922683]
[1762083036869,0.01428,111040.0,111030.0,0.01922683]
[1762083037120,0.01028,111040.0,111030.0,0.01922683]
[1762083037380,0.01328,111040.0,111030.0,0.08358031]
[1762083037602,0.01728,111040.0,111030.0,0.08358031]
[1762083040124,0.01749827,111040.0,111030.0,0.08358031]
[1762083046018,0.03440632,111040.0,111030.0,0.08358031]
[1762083047108,0.03440632,111040.0,111030.0,0.01922683]
[1762083047514,0.04853536,111040.0,111030.0,0.01922683]
[1762083047906,0.03440632,111040.0,111030.0,0.01922683]
[1762083048317,0.01749827,111040.0,111030.0,0.01922683]
[1762083051614,0.01749827,111040.0,111030.0,0.03221892]
[1762083060692,0.01749827,111040.0,111030.0,0.0805473]
[1762083061358,0.03162727,111040.0,111030.0,0.0805473]
[1762083061565,0.01749827,111040.0,111030.0,0.0805473]
[1762083064775,0.01749827,111040.0,111030.0,0.03221892]
[1762083066182,0.01749827,111040.0,111030.0,0.02813892]
[1762083070720,0.04858098,111040.0,111010.0,0.04832838]
[1762083070942,0.08575168,111030.0,111010.0,0.04847345]
[1762083071148,0.10266313,111030.0,111010.0,0.04847345]
[1762083071358,0.10266313,111030.0,111010.0,0.00014507]
[1762083072178,0.10466313,111030.0,111010.0,0.00014507]
[1762083072613,0.10266313,111030.0,111010.0,0.00014507]
[1762083072850,0.01417126,111020.0,111010.0,0.00014507]
[1762083073738,0.09075168,111030.0,111010.0,0.00014507]
[1762083073946,0.01417126,111020.0,111010.0,0.00014507]
[1762083074787,0.03505955,111020.0,111010.0,0.00014507]
[1762083075498,0.03805955,111020.0,111010.0,0.00014507]
[1762083075698,0.05144067,111020.0,111010.0,0.00014507]
[1762083076347,0.03805955,111020.0,111010.0,0.00014507]
[1762083078359,0.02117126,111020.0,111010.0,0.00014507]
[1762083078569,0.38802277,111020.0,111010.0,0.00014507]
[1762083078779,0.3838515,111020.0,111010.0,0.00014507]
[1762083079388,0.3768515,111020.0,111010.0,0.00014507]
[1762083079589,0.44911182,111020.0,111010.0,0.00014507]
[1762083079767,0.46011182,111020.0,111010.0,0.00014507]
[1762083079944,0.45411182,111020.0,111010.0,0.00014507]
[1762083080151,0.45011182,111020.0,111010.0,0.00014507]
[1762083080320,0.44311182,111020.0,111010.0,0.00014507]
[1762083080519,0.45711182,111020.0,111010.0,0.00014507]
[1762083080896,0.46311182,111020.0,111010.0,0.00014507]
[1762083081935,0.44311182,111020.0,111010.0,0.00014507]
[1762083082310,0.45511182,111020.0,111010.0,0.00014507]
[1762083082550,0.45011182,111020.0,111010.0,0.00014507]
[1762083082869,0.45411182,111020.0,111010.0,0.00014507]
[1762083085759,0.45407479,111020.0,111010.0,0.00014507]
[1762083093313,0.46248393,111020.0,111010.0,0.00014507]
[1762083093522,0.52314582,111020.0,111010.0,0.00014507]
[1762083093730,0.72314582,111020.0,111010.0,0.00014507]
[1762083093945,0.75023051,111020.0,111010.0,0.00014507]
[1762083094353,0.87356162,111020.0,111010.0,0.00014507]
[1762083094776,0.88556162,111020.0,111010.0,0.00014507]
[1762083095223,0.89056162,111020.0,111010.0,0.00014507]
[1762083095438,0.88356162,111020.0,111010.0,0.00014507]
[1762083095651,0.93502978,111020.0,111010.0,0.00014507]
[1762083096986,0.91067866,111020.0,111010.0,0.00014507]
[1762083097192,3.89167866,111020.0,110930.0,0.34]
[1762083097397,0.08575168,110960.0,110930.0,0.34]
[1762083097601,0.11114134,110960.0,110930.0,0.34]
[1762083097782,0.01417126,110950.0,110930.0,0.34]
[1762083097992,0.03098575,110950.0,110930.0,0.34]
[1762083098816,0.03098575,110950.0,110930.0,0.34048372]
[1762083099198,0.03198575,110950.0,110930.0,0.34748372]
[1762083099597,0.03298575,110950.0,110930.0,0.36548372]
[1762083099806,0.04561701,110950.0,110930.0,0.36548372]
[1762083100282,0.03298575,110950.0,110930.0,0.36548372]
[1762083112288,0.03298575,110950.0,110930.0,0.02548372]
[1762083112492,0.08575168,110940.0,110930.0,0.02548372]
[1762083112704,0.10256617,110940.0,110930.0,0.02548372]
[1762083113225,0.10256617,110940.0,110930.0,0.00748372]
[1762083113476,0.10256617,110940.0,110930.0,0.00048372]
[1762083113856,0.10356617,110940.0,110930.0,0.01148372]
[1762083114060,0.10456617,110940.0,110930.0,0.02848372]
[1762083115744,0.11643991,110940.0,110930.0,0.02848372]
[1762083118892,0.10456617,110940.0,110930.0,0.02848372]
[1762083122718,0.10356617,110940.0,110930.0,0.01148372]
[1762083122873,0.10256617,110940.0,110930.0,0.00048372]
[1762083123077,0.10356617,110940.0,110930.0,0.01348372]
[1762083123262,0.10356617,110940.0,110930.0,0.02248372]
[1762083123263,0.10456617,110940.0,110930.0,0.02248372]
[1762083123471,0.11543991,110940.0,110930.0,0.01348372]
[1762083123909,0.11643991,110940.0,110930.0,0.02248372]
[1762083124122,0.11543991,110940.0,110930.0,0.00948372]
[1762083125489,0.11643991,110940.0,110930.0,0.02448372]
[1762083127164,0.11543991,110940.0,110930.0,0.01548372]
[1762083127364,0.11443991,110940.0,110930.0,0.00848372]
[1762083127575,0.11543991,110940.0,110930.0,0.00848372]
[1762083128816,0.11643991,110940.0,110930.0,0.01948372]
[1762083136753,0.03068823,110940.0,110930.0,0.01948372]
[1762083136959,0.01881449,110940.0,110930.0,0.01948372]
[1762083141728,0.01889657,110940.0,110930.0,0.01948372]
[1762083147032,0.10464825,110940.0,110930.0,0.01948372]
[1762083158314,0.11881951,110940.0,110930.0,0.01948372]
[1762083178552,0.10192294,110940.0,110930.0,0.01948372]
[1762083178765,0.13882523,110940.0,110930.0,0.01948372]
[1762083181212,0.14882522,110940.0,110930.0,0.01948372]
[1762083181441,0.16574735,110940.0,110930.0,0.01948372]
[1762083184061,0.16574735,110940.0,110900.0,0.03532984]
[1762083184062,0.34999999,110930.0,110900.0,0.03532984]
[1762083184304,0.00999999,110910.0,110900.0,0.00330739]
[1762083184519,0.01417126,110910.0,110900.0,0.00330739]
[1762083184747,0.02909339,110910.0,110900.0,0.00330739]
[1762083185939,0.03009339,110910.0,110900.0,0.01030739]
[1762083186167,0.1070481,110910.0,110900.0,0.01030739]
[1762083186643,0.001,110910.0,110900.0,0.01030739]
[1762083186870,0.001,110910.0,110900.0,0.01230739]
[1762083190349,0.06843302,110910.0,110900.0,0.01230739]
[1762083190599,0.001,110910.0,110900.0,0.01230739]
[1762083214384,0.01792548,110910.0,110900.0,0.01230739]
[1762083214588,0.02951032,110910.0,110900.0,0.01230739]
[1762083214790,0.01258484,110910.0,110900.0,0.01230739]
[1762083215531,0.02951301,110910.0,110900.0,0.01230739]
[1762083215730,0.029513,110910.0,110900.0,0.01230739]
[1762083220708,0.001,110910.0,110900.0,0.02814739]
[1762083221115,0.001,110910.0,110900.0,0.05524666]
[1762083221327,0.001,110910.0,110900.0,0.05744092]
[1762083221537,0.08575168,110920.0,110900.0,0.04844092]
[1762083221811,0.09554397,110920.0,110900.0,0.04844092]
[1762083222271,0.001,110910.0,110900.0,0.05144092]
[1762083222519,0.001,110910.0,110900.0,0.03340666]
[1762083222773,0.001,110910.0,110900.0,0.03440666]
[1762083223207,0.001,110910.0,110900.0,0.03340666]
[1762083223382,0.001,110910.0,110900.0,0.04924666]
[1762083223585,0.001,110910.0,110900.0,0.05124666]
[1762083223784,0.09554397,110920.0,110900.0,0.05124666]
[1762083224008,0.01217126,110930.0,110900.0,0.08855666]
[1762083224218,0.02909041,110930.0,110900.0,0.08755666]
[1762083224482,0.14211161,110940.0,110910.0,0.01145]
[1762083224672,0.11483762,110940.0,110910.0,0.08143845]
[1762083224916,0.10266636,110940.0,110910.0,0.06340582]
[1762083225102,0.08575168,110940.0,110910.0,0.05434263]
[1762083225308,0.003,110930.0,110920.0,0.02709396]
[1762083225520,0.08575168,110940.0,110920.0,0.02709396]
[1762083225870,0.08575168,110940.0,110920.0,0.05438396]
[1762083226283,0.08575168,110940.0,110920.0,0.02729]
[1762083226482,0.08575168,110940.0,110930.0,0.02709345]
[1762083227084,0.09075168,110940.0,110930.0,0.02709345]
[1762083227743,0.01217126,110950.0,110930.0,0.02709345]
[1762083227963,0.02482428,110950.0,110930.0,0.02709345]
[1762083228804,0.02482428,110950.0,110930.0,0.02909345]
[1762083229020,0.08575168,110940.0,110930.0,0.02909345]
[1762083229226,0.08575168,110940.0,110930.0,0.02709345]
[1762083230021,0.02482428,110950.0,110930.0,0.02709345]
[1762083230228,0.02682428,110950.0,110930.0,0.02709345]
[1762083230428,0.02482428,110950.0,110930.0,0.02909345]
[1762083230637,0.01265302,110950.0,110930.0,0.02909345]
[1762083231171,0.01265302,110950.0,110930.0,0.04712283]
[1762083231376,0.01465302,110950.0,110930.0,0.04712283]
[1762083231790,0.01465302,110950.0,110930.0,0.04512283]
[1762083231995,0.01565302,110950.0,110930.0,0.02709345]
[1762083233740,0.003,110950.0,110930.0,0.02709345]
[1762083234399,0.003,110950.0,110920.0,0.05434101]
[1762083234594,0.003,110950.0,110920.0,0.08143316]
[1762083235214,0.002,110950.0,110920.0,0.08143316]
[1762083235437,0.002,110950.0,110920.0,0.05434101]
[1762083235631,0.003,110950.0,110920.0,0.05434101]
[1762083235956,0.001,110950.0,110930.0,0.02709215]
[1762083236368,0.003,110950.0,110930.0,0.02709215]
[1762083237143,0.001,110950.0,110930.0,0.02709215]
[1762083237340,0.003,110950.0,110930.0,0.02709215]
[1762083237940,0.002,110950.0,110930.0,0.02709215]
[1762083238138,0.003,110950.0,110930.0,0.02709215]
[1762083239043,0.003,110950.0,110930.0,0.04352215]
[1762083240560,0.003,110950.0,110930.0,0.06155153]
[1762083240988,0.003,110950.0,110930.0,0.07336153]
[1762083242770,0.003,110950.0,110940.0,0.01643]
[1762083242999,0.003,110950.0,110940.0,0.05182]
[1762083243411,0.003,110950.0,110940.0,0.07890841]
[1762083243824,0.001,110950.0,110940.0,0.07890841]
[1762083244029,0.00048307,110950.0,110940.0,0.07890841]
[1762083244268,0.00148307,110950.0,110940.0,0.07890841]
[1762083244666,0.00048307,110950.0,110940.0,0.07890841]
[1762083245090,0.00048307,110950.0,110940.0,0.08090841]
[1762083251545,0.00048307,110950.0,110940.0,0.05382]
[1762083253136,0.00048307,110950.0,110940.0,0.07184776]
[1762083253938,0.00048307,110950.0,110940.0,0.41184776]
[1762083254137,0.00048307,110950.0,110940.0,0.39382]
[1762083270720,0.00048307,110950.0,110940.0,0.342]
[1762083272973,0.00048307,110950.0,110940.0,0.3586]
[1762083273316,0.00048307,110950.0,110940.0,0.37084]
[1762083277264,0.00048307,110950.0,110940.0,0.35424]
[1762083281746,0.00048307,110950.0,110940.0,0.37084]
[1762083285041,0.00048307,110950.0,110940.0,0.35424]
[1762083285295,0.00048307,110950.0,110940.0,0.342]
[1762083290364,0.00048307,110950.0,110940.0,0.002]
[1762083291182,0.00048307,110950.0,110920.0,0.34]
[1762083291382,0.00148307,110950.0,110920.0,0.3566]
[1762083292825,0.00348307,110950.0,110920.0,0.3566]
[1762083293025,0.00048307,110950.0,110920.0,0.3566]
[1762083293377,0.00348307,110950.0,110920.0,0.3566]
[1762083302318,0.00348307,110950.0,110930.0,0.36899149]